[Event "Titled Tuesday Blitz January 17 Early 2023"]
[White "Tatarinov, Dmitry"]
[Black "Svane, Rasmus"]
[WhiteFideId "24160067"]
[BlackFideId "4657101"]
[WhiteElo "2310"]
[BlackElo "2623"]
[Result "0-1"]
[Round "05"]
[TimeControl "180+2"]
[Date "2023.01.17"]
[WhiteClock "0:02:35"]
[BlackClock "0:01:36"]

1. Nf3 {[%clk 0:03:00]}  d5 {[%clk 0:02:58]} 2. c4 {[%clk 0:03:01]}  e6 {[%clk 0:02:58]} 3. e3 {[%clk 0:03:02]}  Nf6 {[%clk 0:02:57]} 4. b3 {[%clk 0:03:02]}  b6 {[%clk 0:02:53]} 5. Bb2 {[%clk 0:03:03]}  Bb7 {[%clk 0:02:54]} 6. cxd5 {[%clk 0:03:03]}  exd5 {[%clk 0:02:52]} 7. d4 {[%clk 0:03:03]}  Bd6 {[%clk 0:02:51]} 8. g3 {[%clk 0:03:04]}  O-O {[%clk 0:02:49]} 9. Bg2 {[%clk 0:03:04]}  Nbd7 {[%clk 0:02:45]} 10. O-O {[%clk 0:03:05]}  Qe7 {[%clk 0:02:45]} 11. Nc3 {[%clk 0:03:06]}  a6 {[%clk 0:02:43]} 12. Ne2 {[%clk 0:03:06]}  Ne4 {[%clk 0:02:41]} 13. Nf4 {[%clk 0:03:05]}  a5 {[%clk 0:02:18]} 14. a4 {[%clk 0:02:57]}  c6 {[%clk 0:02:13]} 15. Rc1 {[%clk 0:02:57]}  Rac8 {[%clk 0:02:09]} 16. Qc2 {[%clk 0:02:56]}  g6 {[%clk 0:02:06]} 17. Qb1 {[%clk 0:02:56]}  Rfe8 {[%clk 0:01:57]} 18. Rfd1 {[%clk 0:02:50]}  Nxf2 {[%clk 0:01:47]} 19. Kxf2 {[%clk 0:02:51]}  Qxe3+ {[%clk 0:01:47]} 20. Kf1 {[%clk 0:02:51]}  Bxf4 {[%clk 0:01:44]} 21. Rd3 {[%clk 0:02:35]}  Ba6 {[%clk 0:01:41]} 22. Rc4 {[%clk 0:02:35]}  Qe2+ {[%clk 0:01:36]} 0-1


[Site "https://www.chess.com"]

[Event "Titled Tuesday Blitz January 17 Early 2023"]
[White "Sanal, Vahap"]
[Black "Kobalia, Mikhail"]
[WhiteFideId "6300545"]
[BlackFideId "4119150"]
[WhiteElo "2600"]
[BlackElo "2578"]
[Result "1-0"]
[Round "05"]
[TimeControl "180+2"]
[Date "2023.01.17"]
[WhiteClock "0:00:24"]
[BlackClock "0:00:10"]

1. Nf3 {[%clk 0:02:37]}  d5 {[%clk 0:02:59]} 2. g3 {[%clk 0:02:37]}  Bg4 {[%clk 0:02:58]} 3. Bg2 {[%clk 0:02:37]}  c6 {[%clk 0:02:57]} 4. O-O {[%clk 0:02:37]}  e6 {[%clk 0:02:52]} 5. h3 {[%clk 0:02:38]}  Bh5 {[%clk 0:02:51]} 6. c4 {[%clk 0:02:38]}  Nf6 {[%clk 0:02:51]} 7. d4 {[%clk 0:02:38]}  Be7 {[%clk 0:02:45]} 8. cxd5 {[%clk 0:02:38]}  exd5 {[%clk 0:02:42]} 9. Ne5 {[%clk 0:02:38]}  Nfd7 {[%clk 0:02:37]} 10. f4 {[%clk 0:02:36]}  Nxe5 {[%clk 0:02:30]} 11. dxe5 {[%clk 0:02:35]}  f6 {[%clk 0:02:30]} 12. exf6 {[%clk 0:02:16]}  Bxf6 {[%clk 0:02:29]} 13. g4 {[%clk 0:02:06]}  Bf7 {[%clk 0:02:28]} 14. e4 {[%clk 0:02:00]}  dxe4 {[%clk 0:02:25]} 15. Qxd8+ {[%clk 0:02:00]}  Bxd8 {[%clk 0:02:24]} 16. Nc3 {[%clk 0:01:55]}  Bb6+ {[%clk 0:02:19]} 17. Kh2 {[%clk 0:01:54]}  e3 {[%clk 0:02:19]} 18. Bxe3 {[%clk 0:01:53]}  Bxe3 {[%clk 0:02:18]} 19. Rae1 {[%clk 0:01:54]}  O-O {[%clk 0:02:18]} 20. Rxe3 {[%clk 0:01:54]}  Na6 {[%clk 0:02:17]} 21. Re7 {[%clk 0:01:50]}  Rab8 {[%clk 0:02:14]} 22. Rd1 {[%clk 0:01:42]}  Rfe8 {[%clk 0:02:03]} 23. Rxe8+ {[%clk 0:01:40]}  Rxe8 {[%clk 0:01:53]} 24. Rd7 {[%clk 0:01:39]}  Nc5 {[%clk 0:01:53]} 25. Rc7 {[%clk 0:01:39]}  Rb8 {[%clk 0:01:53]} 26. a3 {[%clk 0:01:30]}  Na6 {[%clk 0:01:53]} 27. Re7 {[%clk 0:01:23]}  Kf8 {[%clk 0:01:51]} 28. Re5 {[%clk 0:01:24]}  Rd8 {[%clk 0:01:48]} 29. Ne4 {[%clk 0:01:23]}  h6 {[%clk 0:01:30]} 30. f5 {[%clk 0:01:15]}  Rd5 {[%clk 0:01:08]} 31. Rxd5 {[%clk 0:01:15]}  Bxd5 {[%clk 0:01:08]} 32. Nd6 {[%clk 0:01:15]}  b6 {[%clk 0:00:37]} 33. Nc8 {[%clk 0:01:09]}  Nc5 {[%clk 0:00:30]} 34. Nxa7 {[%clk 0:01:09]}  Nd3 {[%clk 0:00:27]} 35. b4 {[%clk 0:01:00]}  Bxg2 {[%clk 0:00:21]} 36. Kxg2 {[%clk 0:01:01]}  c5 {[%clk 0:00:21]} 37. bxc5 {[%clk 0:01:01]}  Nxc5 {[%clk 0:00:20]} 38. Nc8 {[%clk 0:00:57]}  Na4 {[%clk 0:00:17]} 39. Kf3 {[%clk 0:00:56]}  b5 {[%clk 0:00:17]} 40. Ke3 {[%clk 0:00:51]}  Nc3 {[%clk 0:00:16]} 41. Nd6 {[%clk 0:00:48]}  Ke7 {[%clk 0:00:14]} 42. Kd3 {[%clk 0:00:32]}  Nd5 {[%clk 0:00:14]} 43. Nxb5 {[%clk 0:00:32]}  Nf4+ {[%clk 0:00:15]} 44. Ke3 {[%clk 0:00:29]}  Nxh3 {[%clk 0:00:15]} 45. a4 {[%clk 0:00:29]}  Kd7 {[%clk 0:00:15]} 46. a5 {[%clk 0:00:28]}  Ng5 {[%clk 0:00:14]} 47. Nd4 {[%clk 0:00:27]}  Nf7 {[%clk 0:00:11]} 48. Ne6 {[%clk 0:00:24]}  Ne5 {[%clk 0:00:10]} 49. Kf4 {[%clk 0:00:24]}  Nd3+ {[%clk 0:00:10]} 50. Kg3 {[%clk 0:00:24]} 1-0


[Site "https://www.chess.com"]

[Event "Titled Tuesday Blitz January 17 Early 2023"]
[White "UnknownMagician"]
[Black "Le, Tuan Minh"]
[BlackFideId "12401153"]
[WhiteElo "2637"]
[BlackElo "2542"]
[Result "0-1"]
[Round "05"]
[TimeControl "180+2"]
[Date "2023.01.17"]
[WhiteClock "0:00:05"]
[BlackClock "0:01:03"]

1. c4 {[%clk 0:02:56]}  c6 {[%clk 0:03:00]} 2. Nf3 {[%clk 0:02:55]}  d5 {[%clk 0:02:59]} 3. e3 {[%clk 0:02:56]}  Nf6 {[%clk 0:03:00]} 4. Nc3 {[%clk 0:02:56]}  a6 {[%clk 0:02:59]} 5. b3 {[%clk 0:02:56]}  Bg4 {[%clk 0:02:58]} 6. Be2 {[%clk 0:02:54]}  e6 {[%clk 0:02:58]} 7. Bb2 {[%clk 0:02:53]}  Nbd7 {[%clk 0:02:58]} 8. d4 {[%clk 0:02:51]}  Bd6 {[%clk 0:02:58]} 9. O-O {[%clk 0:02:49]}  O-O {[%clk 0:02:58]} 10. h3 {[%clk 0:02:48]}  Bh5 {[%clk 0:02:58]} 11. Rc1 {[%clk 0:02:48]}  Qe7 {[%clk 0:02:58]} 12. Re1 {[%clk 0:02:44]}  Rfd8 {[%clk 0:02:57]} 13. Qc2 {[%clk 0:02:43]}  Bb4 {[%clk 0:02:45]} 14. Nd2 {[%clk 0:02:34]}  Bg6 {[%clk 0:02:28]} 15. Bd3 {[%clk 0:02:34]}  b5 {[%clk 0:02:22]} 16. Bxg6 {[%clk 0:02:28]}  hxg6 {[%clk 0:02:22]} 17. cxd5 {[%clk 0:02:24]}  cxd5 {[%clk 0:02:21]} 18. Qd3 {[%clk 0:02:19]}  Rac8 {[%clk 0:02:21]} 19. Rc2 {[%clk 0:02:11]}  Rc7 {[%clk 0:01:32]} 20. Rec1 {[%clk 0:02:10]}  Rdc8 {[%clk 0:01:32]} 21. Ne2 {[%clk 0:02:02]}  Qd6 {[%clk 0:01:27]} 22. Rxc7 {[%clk 0:01:53]}  Rxc7 {[%clk 0:01:28]} 23. Rxc7 {[%clk 0:01:53]}  Qxc7 {[%clk 0:01:29]} 24. a3 {[%clk 0:01:53]}  Bd6 {[%clk 0:01:27]} 25. Qc3 {[%clk 0:01:37]}  Qb7 {[%clk 0:01:27]} 26. Qc1 {[%clk 0:01:21]}  Ne4 {[%clk 0:01:23]} 27. Nxe4 {[%clk 0:01:21]}  dxe4 {[%clk 0:01:24]} 28. Qc2 {[%clk 0:01:17]}  Nf6 {[%clk 0:01:24]} 29. g3 {[%clk 0:01:08]}  g5 {[%clk 0:01:22]} 30. Kg2 {[%clk 0:01:05]}  a5 {[%clk 0:01:16]} 31. a4 {[%clk 0:01:02]}  b4 {[%clk 0:01:16]} 32. Bc1 {[%clk 0:00:54]}  Nd5 {[%clk 0:01:13]} 33. Bd2 {[%clk 0:00:53]}  f5 {[%clk 0:01:10]} 34. Kg1 {[%clk 0:00:51]}  Kh7 {[%clk 0:01:07]} 35. Bc1 {[%clk 0:00:38]}  Qd7 {[%clk 0:01:05]} 36. Bd2 {[%clk 0:00:36]}  Qe8 {[%clk 0:01:05]} 37. g4 {[%clk 0:00:34]}  Nf6 {[%clk 0:01:02]} 38. gxf5 {[%clk 0:00:21]}  exf5 {[%clk 0:01:03]} 39. Ng3 {[%clk 0:00:14]}  Bxg3 {[%clk 0:01:02]} 40. fxg3 {[%clk 0:00:14]}  Qh5 {[%clk 0:01:03]} 41. Qc5 {[%clk 0:00:05]}  Qd1+ {[%clk 0:01:03]} 0-1


[Site "https://www.chess.com"]

[Event "Titled Tuesday Blitz January 17 Early 2023"]
[White "Mikhailovsky, Vladimir"]
[Black "Duda, Jan-Krzysztof"]
[WhiteFideId "34105414"]
[BlackFideId "1170546"]
[WhiteElo "2215"]
[BlackElo "2724"]
[Result "1/2-1/2"]
[Round "05"]
[TimeControl "180+2"]
[Date "2023.01.17"]
[WhiteClock "0:00:13"]
[BlackClock "0:00:06"]

1. e4 {[%clk 0:03:00]}  c5 {[%clk 0:02:59]} 2. c3 {[%clk 0:03:00]}  Nf6 {[%clk 0:02:57]} 3. e5 {[%clk 0:03:00]}  Nd5 {[%clk 0:02:58]} 4. Nf3 {[%clk 0:03:00]}  e6 {[%clk 0:02:57]} 5. Bc4 {[%clk 0:02:58]}  d6 {[%clk 0:02:52]} 6. d4 {[%clk 0:02:54]}  cxd4 {[%clk 0:02:46]} 7. Bxd5 {[%clk 0:02:45]}  exd5 {[%clk 0:02:46]} 8. O-O {[%clk 0:02:45]}  dxe5 {[%clk 0:02:31]} 9. Nxe5 {[%clk 0:02:44]}  Bd6 {[%clk 0:02:20]} 10. Qa4+ {[%clk 0:02:39]}  Nd7 {[%clk 0:02:14]} 11. Nxd7 {[%clk 0:02:38]}  Bxd7 {[%clk 0:02:15]} 12. Re1+ {[%clk 0:02:38]}  Be7 {[%clk 0:01:47]} 13. Qxd4 {[%clk 0:02:10]}  O-O {[%clk 0:01:47]} 14. Qxd5 {[%clk 0:02:08]}  Bc6 {[%clk 0:01:47]} 15. Qf5 {[%clk 0:01:59]}  Re8 {[%clk 0:01:44]} 16. Be3 {[%clk 0:01:53]}  Bf8 {[%clk 0:01:22]} 17. Na3 {[%clk 0:01:40]}  Re6 {[%clk 0:00:59]} 18. Bg5 {[%clk 0:01:32]}  Qd5 {[%clk 0:00:57]} 19. Qxd5 {[%clk 0:01:29]}  Bxd5 {[%clk 0:00:58]} 20. Rxe6 {[%clk 0:01:29]}  Bxe6 {[%clk 0:00:59]} 21. Nb5 {[%clk 0:01:22]}  Bc4 {[%clk 0:00:57]} 22. Nd4 {[%clk 0:01:18]}  f6 {[%clk 0:00:54]} 23. Be3 {[%clk 0:01:17]}  a6 {[%clk 0:00:46]} 24. b3 {[%clk 0:01:15]}  Bf7 {[%clk 0:00:45]} 25. c4 {[%clk 0:01:14]}  h5 {[%clk 0:00:44]} 26. Rd1 {[%clk 0:01:08]}  b5 {[%clk 0:00:40]} 27. cxb5 {[%clk 0:00:49]}  axb5 {[%clk 0:00:40]} 28. Rd2 {[%clk 0:00:32]}  b4 {[%clk 0:00:40]} 29. f3 {[%clk 0:00:33]}  Kh7 {[%clk 0:00:36]} 30. Kf2 {[%clk 0:00:33]}  Ra6 {[%clk 0:00:35]} 31. g3 {[%clk 0:00:26]}  Bg6 {[%clk 0:00:35]} 32. h3 {[%clk 0:00:24]}  Bb1 {[%clk 0:00:34]} 33. g4 {[%clk 0:00:20]}  Kg6 {[%clk 0:00:29]} 34. Rb2 {[%clk 0:00:19]}  Rxa2 {[%clk 0:00:19]} 35. Rxa2 {[%clk 0:00:19]}  Bxa2 {[%clk 0:00:20]} 36. Ke2 {[%clk 0:00:19]}  hxg4 {[%clk 0:00:18]} 37. hxg4 {[%clk 0:00:19]}  Kf7 {[%clk 0:00:18]} 38. Kd2 {[%clk 0:00:17]}  Bb1 {[%clk 0:00:18]} 39. Nc2 {[%clk 0:00:17]}  Ba2 {[%clk 0:00:17]} 40. Nd4 {[%clk 0:00:16]}  Bb1 {[%clk 0:00:17]} 41. Nc2 {[%clk 0:00:17]}  Ke6 {[%clk 0:00:17]} 42. Kc1 {[%clk 0:00:16]}  Bxc2 {[%clk 0:00:17]} 43. Kxc2 {[%clk 0:00:17]}  Kd5 {[%clk 0:00:18]} 44. Kd3 {[%clk 0:00:18]}  Bc5 {[%clk 0:00:18]} 45. Bxc5 {[%clk 0:00:15]}  Kxc5 {[%clk 0:00:18]} 46. Ke4 {[%clk 0:00:16]}  g5 {[%clk 0:00:06]} 47. Kf5 {[%clk 0:00:12]}  Kd4 {[%clk 0:00:06]} 48. Kxf6 {[%clk 0:00:12]}  Kc3 {[%clk 0:00:07]} 49. Kxg5 {[%clk 0:00:13]}  Kxb3 {[%clk 0:00:07]} 50. f4 {[%clk 0:00:14]}  Kc3 {[%clk 0:00:06]} 51. f5 {[%clk 0:00:15]}  b3 {[%clk 0:00:06]} 52. f6 {[%clk 0:00:16]}  b2 {[%clk 0:00:07]} 53. f7 {[%clk 0:00:17]}  b1=Q {[%clk 0:00:08]} 54. f8=Q {[%clk 0:00:18]}  Qc1+ {[%clk 0:00:07]} 55. Qf4 {[%clk 0:00:18]}  Qe1 {[%clk 0:00:06]} 56. Kg6 {[%clk 0:00:14]}  Qe8+ {[%clk 0:00:06]} 57. Qf7 {[%clk 0:00:15]}  Qe4+ {[%clk 0:00:06]} 58. Qf5 {[%clk 0:00:15]}  Qe8+ {[%clk 0:00:06]} 59. Kh6 {[%clk 0:00:15]}  Qh8+ {[%clk 0:00:06]} 60. Kg5 {[%clk 0:00:16]}  Qg8+ {[%clk 0:00:06]} 61. Qg6 {[%clk 0:00:16]}  Qd5+ {[%clk 0:00:06]} 62. Kh6 {[%clk 0:00:16]}  Kd4 {[%clk 0:00:06]} 63. Qf6+ {[%clk 0:00:15]}  Ke4 {[%clk 0:00:06]} 64. g5 {[%clk 0:00:15]}  Qd2 {[%clk 0:00:06]} 65. Kg7 {[%clk 0:00:14]}  Qd7+ {[%clk 0:00:06]} 66. Kh6 {[%clk 0:00:12]}  Qd2 {[%clk 0:00:05]} 67. Kh7 {[%clk 0:00:13]}  Qh2+ {[%clk 0:00:05]} 68. Kg7 {[%clk 0:00:13]}  Qc7+ {[%clk 0:00:06]} 69. Qf7 {[%clk 0:00:13]}  Qc3+ {[%clk 0:00:05]} 70. Kg6 {[%clk 0:00:13]}  Qc6+ {[%clk 0:00:04]} 71. Qf6 {[%clk 0:00:13]}  Qd7 {[%clk 0:00:04]} 72. Kh6 {[%clk 0:00:13]}  Qh3+ {[%clk 0:00:05]} 73. Kg7 {[%clk 0:00:13]}  Qd7+ {[%clk 0:00:05]} 74. Qf7 {[%clk 0:00:13]}  Qd4+ {[%clk 0:00:05]} 75. Kg8 {[%clk 0:00:13]}  Qd8+ {[%clk 0:00:04]} 76. Kh7 {[%clk 0:00:13]}  Qxg5 {[%clk 0:00:04]} 77. Qg6+ {[%clk 0:00:13]}  Kf4 {[%clk 0:00:05]} 78. Qxg5+ {[%clk 0:00:13]}  Kxg5 {[%clk 0:00:06]} 1/2-1/2


[Site "https://www.chess.com"]

[Event "Titled Tuesday Blitz January 17 Early 2023"]
[White "Rohith Krishna S"]
[Black "Eljanov, Pavel"]
[WhiteFideId "46617051"]
[BlackFideId "14102951"]
[WhiteElo "2385"]
[BlackElo "2705"]
[Result "0-1"]
[Round "05"]
[TimeControl "180+2"]
[Date "2023.01.17"]
[WhiteClock "0:00:16"]
[BlackClock "0:00:21"]

1. Nf3 {[%clk 0:03:00]}  d5 {[%clk 0:02:59]} 2. g3 {[%clk 0:03:00]}  Nc6 {[%clk 0:02:59]} 3. d4 {[%clk 0:02:59]}  Bf5 {[%clk 0:02:59]} 4. Bg2 {[%clk 0:02:58]}  Nb4 {[%clk 0:02:59]} 5. Na3 {[%clk 0:02:58]}  e6 {[%clk 0:03:00]} 6. O-O {[%clk 0:02:58]}  Be7 {[%clk 0:03:00]} 7. c3 {[%clk 0:02:57]}  Nc6 {[%clk 0:03:00]} 8. Nc2 {[%clk 0:02:57]}  h6 {[%clk 0:02:57]} 9. Nd2 {[%clk 0:02:54]}  Nf6 {[%clk 0:02:56]} 10. Re1 {[%clk 0:02:54]}  O-O {[%clk 0:02:43]} 11. e4 {[%clk 0:02:54]}  dxe4 {[%clk 0:02:43]} 12. Nxe4 {[%clk 0:02:55]}  Nxe4 {[%clk 0:02:36]} 13. Bxe4 {[%clk 0:02:56]}  Bxe4 {[%clk 0:02:36]} 14. Rxe4 {[%clk 0:02:57]}  e5 {[%clk 0:02:26]} 15. d5 {[%clk 0:02:52]}  Bf6 {[%clk 0:01:45]} 16. Bxh6 {[%clk 0:02:47]}  Ne7 {[%clk 0:01:46]} 17. Be3 {[%clk 0:02:11]}  Nxd5 {[%clk 0:01:46]} 18. Qf3 {[%clk 0:02:06]}  c6 {[%clk 0:01:40]} 19. Rd1 {[%clk 0:01:59]}  Qc8 {[%clk 0:01:32]} 20. Rg4 {[%clk 0:01:50]}  Qe6 {[%clk 0:01:28]} 21. c4 {[%clk 0:01:41]}  Nxe3 {[%clk 0:01:13]} 22. Nxe3 {[%clk 0:01:41]}  Rad8 {[%clk 0:01:13]} 23. Re1 {[%clk 0:01:40]}  Rd3 {[%clk 0:01:10]} 24. h4 {[%clk 0:01:34]}  Rfd8 {[%clk 0:01:09]} 25. h5 {[%clk 0:01:34]}  Kf8 {[%clk 0:01:09]} 26. b3 {[%clk 0:01:27]}  R8d4 {[%clk 0:01:09]} 27. Rxd4 {[%clk 0:01:14]}  exd4 {[%clk 0:01:07]} 28. Qe2 {[%clk 0:01:10]}  Rc3 {[%clk 0:00:56]} 29. Ng4 {[%clk 0:01:11]}  Qxe2 {[%clk 0:00:50]} 30. Rxe2 {[%clk 0:01:12]}  d3 {[%clk 0:00:47]} 31. Rd2 {[%clk 0:01:10]}  Bd4 {[%clk 0:00:46]} 32. Kg2 {[%clk 0:01:04]}  c5 {[%clk 0:00:40]} 33. Kf3 {[%clk 0:01:01]}  Rc2 {[%clk 0:00:29]} 34. Rxd3 {[%clk 0:01:00]}  Rxa2 {[%clk 0:00:29]} 35. Ne3 {[%clk 0:01:00]}  g6 {[%clk 0:00:23]} 36. hxg6 {[%clk 0:00:53]}  fxg6 {[%clk 0:00:24]} 37. Ng4 {[%clk 0:00:45]}  Ke7 {[%clk 0:00:22]} 38. Ke4 {[%clk 0:00:34]}  Kd6 {[%clk 0:00:20]} 39. f4 {[%clk 0:00:33]}  a5 {[%clk 0:00:21]} 40. Ne3 {[%clk 0:00:30]}  Kc6 {[%clk 0:00:21]} 41. Nd5 {[%clk 0:00:29]}  a4 {[%clk 0:00:20]} 42. b4 {[%clk 0:00:20]}  a3 {[%clk 0:00:20]} 43. b5+ {[%clk 0:00:20]}  Kd6 {[%clk 0:00:20]} 44. b6 {[%clk 0:00:17]}  Re2+ {[%clk 0:00:20]} 45. Kf3 {[%clk 0:00:17]}  Rf2+ {[%clk 0:00:20]} 46. Kg4 {[%clk 0:00:16]}  a2 {[%clk 0:00:21]} 0-1


[Site "https://www.chess.com"]

[Event "Titled Tuesday Blitz January 17 Early 2023"]
[White "Salimova, Nurgyul"]
[Black "Sadhwani, Raunak"]
[WhiteFideId "2915138"]
[BlackFideId "35093487"]
[WhiteElo "2391"]
[BlackElo "2627"]
[Result "1-0"]
[Round "05"]
[TimeControl "180+2"]
[Date "2023.01.17"]
[WhiteClock "0:00:29"]
[BlackClock "0:00:10"]

1. d4 {[%clk 0:02:58]}  g6 {[%clk 0:02:45]} 2. Nf3 {[%clk 0:02:57]}  Bg7 {[%clk 0:02:44]} 3. g3 {[%clk 0:02:51]}  d6 {[%clk 0:02:43]} 4. Bg2 {[%clk 0:02:51]}  Nf6 {[%clk 0:02:43]} 5. O-O {[%clk 0:02:50]}  O-O {[%clk 0:02:44]} 6. c4 {[%clk 0:02:45]}  Nbd7 {[%clk 0:02:40]} 7. Nc3 {[%clk 0:02:44]}  e5 {[%clk 0:02:40]} 8. e4 {[%clk 0:02:37]}  Re8 {[%clk 0:02:30]} 9. Re1 {[%clk 0:02:36]}  exd4 {[%clk 0:02:29]} 10. Nxd4 {[%clk 0:02:35]}  Nc5 {[%clk 0:02:29]} 11. h3 {[%clk 0:02:30]}  Bd7 {[%clk 0:02:28]} 12. b3 {[%clk 0:02:18]}  Qc8 {[%clk 0:02:28]} 13. Kh2 {[%clk 0:02:17]}  Re5 {[%clk 0:02:28]} 14. f3 {[%clk 0:01:51]}  Rh5 {[%clk 0:02:11]} 15. h4 {[%clk 0:01:46]}  h6 {[%clk 0:02:09]} 16. Be3 {[%clk 0:01:39]}  Re5 {[%clk 0:01:50]} 17. Qd2 {[%clk 0:01:37]}  Kh7 {[%clk 0:01:51]} 18. Rad1 {[%clk 0:01:35]}  a6 {[%clk 0:01:43]} 19. b4 {[%clk 0:01:24]}  Ne6 {[%clk 0:01:38]} 20. Nde2 {[%clk 0:01:22]}  b5 {[%clk 0:01:30]} 21. c5 {[%clk 0:01:14]}  dxc5 {[%clk 0:01:30]} 22. bxc5 {[%clk 0:01:14]}  b4 {[%clk 0:01:10]} 23. Nd5 {[%clk 0:01:13]}  Ba4 {[%clk 0:01:09]} 24. Rb1 {[%clk 0:01:08]}  a5 {[%clk 0:01:09]} 25. Nxf6+ {[%clk 0:01:02]}  Bxf6 {[%clk 0:01:10]} 26. f4 {[%clk 0:01:03]}  Rh5 {[%clk 0:01:09]} 27. e5 {[%clk 0:01:00]}  Be7 {[%clk 0:01:03]} 28. Bf3 {[%clk 0:00:56]}  Ng7 {[%clk 0:00:50]} 29. Qd5 {[%clk 0:00:55]}  Ra6 {[%clk 0:00:29]} 30. Bxh5 {[%clk 0:00:51]}  gxh5 {[%clk 0:00:30]} 31. Qxf7 {[%clk 0:00:48]}  Bf8 {[%clk 0:00:13]} 32. Nd4 {[%clk 0:00:34]}  Bxc5 {[%clk 0:00:14]} 33. Rbc1 {[%clk 0:00:33]}  Bxd4 {[%clk 0:00:13]} 34. Bxd4 {[%clk 0:00:34]}  Qg4 {[%clk 0:00:10]} 35. e6 {[%clk 0:00:29]} 1-0


[Site "https://www.chess.com"]

[Event "Titled Tuesday Blitz January 17 Early 2023"]
[White "Nazari, Arad"]
[Black "Narayanan.S.L"]
[WhiteFideId "12577324"]
[BlackFideId "5058422"]
[WhiteElo "2367"]
[BlackElo "2660"]
[Result "1-0"]
[Round "05"]
[TimeControl "180+2"]
[Date "2023.01.17"]
[WhiteClock "0:00:13"]
[BlackClock "0:00:02"]

1. e4 {[%clk 0:02:47]}  e5 {[%clk 0:02:58]} 2. f4 {[%clk 0:02:47]}  exf4 {[%clk 0:02:49]} 3. Nf3 {[%clk 0:02:45]}  d5 {[%clk 0:02:50]} 4. exd5 {[%clk 0:02:45]}  Nf6 {[%clk 0:02:50]} 5. Bb5+ {[%clk 0:02:44]}  c6 {[%clk 0:02:49]} 6. dxc6 {[%clk 0:02:44]}  bxc6 {[%clk 0:02:49]} 7. Bc4 {[%clk 0:02:39]}  Bd6 {[%clk 0:02:50]} 8. Qe2+ {[%clk 0:02:34]}  Qe7 {[%clk 0:02:46]} 9. Qxe7+ {[%clk 0:02:15]}  Kxe7 {[%clk 0:02:46]} 10. O-O {[%clk 0:02:16]}  Be6 {[%clk 0:02:35]} 11. Bxe6 {[%clk 0:02:11]}  fxe6 {[%clk 0:02:35]} 12. b3 {[%clk 0:02:11]}  Nbd7 {[%clk 0:02:35]} 13. Na3 {[%clk 0:02:11]}  e5 {[%clk 0:02:18]} 14. Bb2 {[%clk 0:02:01]}  Bxa3 {[%clk 0:02:08]} 15. Bxa3+ {[%clk 0:01:59]}  Ke6 {[%clk 0:02:08]} 16. Rae1 {[%clk 0:01:58]}  Kf5 {[%clk 0:02:07]} 17. Bd6 {[%clk 0:01:25]}  Rae8 {[%clk 0:02:05]} 18. d4 {[%clk 0:01:23]}  e4 {[%clk 0:01:31]} 19. Nh4+ {[%clk 0:01:21]}  Kg5 {[%clk 0:01:32]} 20. Rxf4 {[%clk 0:01:20]}  g6 {[%clk 0:01:28]} 21. g3 {[%clk 0:01:10]}  Re6 {[%clk 0:01:27]} 22. Nf3+ {[%clk 0:00:42]}  Kh6 {[%clk 0:01:23]} 23. Ne5 {[%clk 0:00:35]}  Rhe8 {[%clk 0:01:23]} 24. Nxd7 {[%clk 0:00:25]}  Nxd7 {[%clk 0:01:24]} 25. Ba3 {[%clk 0:00:24]}  Nf6 {[%clk 0:01:24]} 26. Bc1 {[%clk 0:00:24]}  Kg7 {[%clk 0:01:21]} 27. c4 {[%clk 0:00:25]}  g5 {[%clk 0:01:14]} 28. Rf5 {[%clk 0:00:20]}  h6 {[%clk 0:01:14]} 29. Ra5 {[%clk 0:00:20]}  R8e7 {[%clk 0:01:10]} 30. Be3 {[%clk 0:00:21]}  Ng4 {[%clk 0:01:08]} 31. h3 {[%clk 0:00:21]}  Nxe3 {[%clk 0:01:08]} 32. Rxe3 {[%clk 0:00:22]}  Rf7 {[%clk 0:01:07]} 33. Kg2 {[%clk 0:00:22]}  Ref6 {[%clk 0:00:59]} 34. g4 {[%clk 0:00:14]}  Rf2+ {[%clk 0:00:53]} 35. Kg3 {[%clk 0:00:14]}  Rd2 {[%clk 0:00:54]} 36. Rxe4 {[%clk 0:00:07]}  Rd3+ {[%clk 0:00:54]} 37. Kg2 {[%clk 0:00:08]}  Rd2+ {[%clk 0:00:54]} 38. Kg3 {[%clk 0:00:08]}  Rd3+ {[%clk 0:00:47]} 39. Kg2 {[%clk 0:00:08]}  Rff3 {[%clk 0:00:46]} 40. Rxa7+ {[%clk 0:00:07]}  Kf6 {[%clk 0:00:45]} 41. Re8 {[%clk 0:00:07]}  Rg3+ {[%clk 0:00:42]} 42. Kf2 {[%clk 0:00:08]}  Rxh3 {[%clk 0:00:41]} 43. Rf8+ {[%clk 0:00:08]}  Kg6 {[%clk 0:00:41]} 44. Rg8+ {[%clk 0:00:08]}  Kf6 {[%clk 0:00:42]} 45. Rf8+ {[%clk 0:00:08]}  Kg6 {[%clk 0:00:40]} 46. Rc7 {[%clk 0:00:09]}  Rh2+ {[%clk 0:00:37]} 47. Kg1 {[%clk 0:00:09]}  Rxa2 {[%clk 0:00:37]} 48. Rxc6+ {[%clk 0:00:09]}  Kg7 {[%clk 0:00:38]} 49. Rf2 {[%clk 0:00:09]}  Ra1+ {[%clk 0:00:34]} 50. Kg2 {[%clk 0:00:10]}  Rxd4 {[%clk 0:00:33]} 51. Rc7+ {[%clk 0:00:08]}  Kg6 {[%clk 0:00:34]} 52. Rc6+ {[%clk 0:00:09]}  Kg7 {[%clk 0:00:34]} 53. Rff6 {[%clk 0:00:09]}  Rxg4+ {[%clk 0:00:33]} 54. Kf3 {[%clk 0:00:10]}  Rh4 {[%clk 0:00:28]} 55. Rg6+ {[%clk 0:00:10]}  Kh7 {[%clk 0:00:27]} 56. Rgd6 {[%clk 0:00:11]}  Rf1+ {[%clk 0:00:27]} 57. Kg2 {[%clk 0:00:11]}  Rf7 {[%clk 0:00:27]} 58. b4 {[%clk 0:00:12]}  Rg4+ {[%clk 0:00:26]} 59. Kh3 {[%clk 0:00:12]}  Rh4+ {[%clk 0:00:26]} 60. Kg3 {[%clk 0:00:13]}  Rh1 {[%clk 0:00:16]} 61. Kg2 {[%clk 0:00:12]}  Rh4 {[%clk 0:00:13]} 62. b5 {[%clk 0:00:12]}  h5 {[%clk 0:00:12]} 63. Rh6+ {[%clk 0:00:12]}  Kg8 {[%clk 0:00:13]} 64. Rhg6+ {[%clk 0:00:12]}  Rg7 {[%clk 0:00:13]} 65. b6 {[%clk 0:00:11]}  Rxg6 {[%clk 0:00:10]} 66. Rxg6+ {[%clk 0:00:12]}  Kf7 {[%clk 0:00:11]} 67. Rc6 {[%clk 0:00:12]}  Rg4+ {[%clk 0:00:10]} 68. Kh3 {[%clk 0:00:13]}  Rh4+ {[%clk 0:00:10]} 69. Kg3 {[%clk 0:00:13]}  Rg4+ {[%clk 0:00:11]} 70. Kf3 {[%clk 0:00:14]}  Rf4+ {[%clk 0:00:12]} 71. Ke3 {[%clk 0:00:15]}  Rf1 {[%clk 0:00:12]} 72. Rc5 {[%clk 0:00:09]}  Re1+ {[%clk 0:00:06]} 73. Kf2 {[%clk 0:00:09]}  Re8 {[%clk 0:00:05]} 74. b7 {[%clk 0:00:10]}  Rb8 {[%clk 0:00:05]} 75. Rc7+ {[%clk 0:00:11]}  Ke6 {[%clk 0:00:05]} 76. c5 {[%clk 0:00:11]}  h4 {[%clk 0:00:05]} 77. c6 {[%clk 0:00:12]}  Rf8+ {[%clk 0:00:02]} 78. Kg2 {[%clk 0:00:12]}  g4 {[%clk 0:00:03]} 79. Rc8 {[%clk 0:00:12]}  h3+ {[%clk 0:00:04]} 80. Kg3 {[%clk 0:00:12]}  h2 {[%clk 0:00:04]} 81. Kxh2 {[%clk 0:00:13]}  g3+ {[%clk 0:00:02]} 82. Kxg3 {[%clk 0:00:13]} 1-0


[Site "https://www.chess.com"]